{"text_format":"1","workbook":"xlsx","n_sheets":2,"sheets":["Identification","Bilan de compétences"],"not_rendered":{"charts":16,"images":0,"macros":1,"external_links":0,"defined_names":2,"comments":0,"pivot_tables":0},"unopened":[],"bounds":{"document_bytes":16777216,"sheet_cells":100000,"rows_first":2000,"rows_last":500,"rows_between":2000,"halvings":0,"cell_chars":16384,"cell_head_chars":4096},"cells_cut":0,"cells_raw":0,"read":"whole","date_system":"1900"}

{"sheet":"Identification","index":0,"n_rows":19,"n_cols":8,"rows_kept":19,"cut":false,"hidden":false,"merged":[[15,1,15,2],[18,0,18,1],[0,0,0,4],[2,0,2,4],[3,1,3,4],[4,1,4,4],[14,1,14,2],[11,0,11,4],[12,0,12,4],[13,0,13,4],[6,1,6,4],[10,0,10,4],[17,0,17,4],[19,0,19,1],[21,0,21,1],[22,0,22,1],[23,0,23,1],[20,0,20,1]]}
["Toutes les cases grisées doivent être renseignées par les professeurs concernés. Elles deviennent blanches une fois remplies"]
[]
["Identification",null,null,null,null,null,null,"EP1"]
["Diplôme ","Certificat d'Aptitude Professionnelle \" Conducteur Agent d'Accueil en Autobus et Autocar \"  ",null,null,null,null,null,"C4A"]
["Épreuve","EP1 : Déroulement d’une opération de transport - Unité UP1 "]
["Coefficient ",3,null,null,null,null,null,{"$f":"CONCATENATE(H4,\"-\",H3,\"-\",B8,\"-\",B9)","v":"C4A-EP1-2025-"}]
["Établissement du candidat"]
["Session  ",2025]
["Nom - Prénom du Candidat"]
["Numéro de Candidat"]
[]
["Description sommaire du travail demandé"]
[]
["Tâches support de l'évaluation"]
["A1.1","Mise en oeuvre de la mission de transport"]
["A1.2","Clôture de l’opération de transport"]
[]
[" Les lignes renseignent automatiquement la feuille \"Bilan de compétences\" sauf la date à renseigner manuellement le jour de l'attribution de la note"]
["Noms et prénoms des professeurs évaluateurs"]

{"sheet":"Bilan de compétences","index":1,"n_rows":55,"n_cols":22,"rows_kept":55,"cut":false,"hidden":false,"merged":[[8,2,8,6],[9,2,9,6],[12,2,12,6],[25,2,25,6],[26,2,26,6],[14,2,14,6],[15,2,15,6],[16,2,16,6],[17,2,17,6],[23,2,23,6],[18,2,18,6],[19,2,19,6],[20,2,20,6],[21,2,21,6],[42,10,42,11],[48,2,48,5],[48,7,48,10],[49,7,49,10],[44,2,44,5],[45,2,47,5],[42,2,42,7],[42,8,42,9],[38,7,38,11],[37,2,37,6],[38,2,38,6],[41,10,41,11],[41,8,41,9],[40,8,40,9],[39,8,39,11],[40,10,40,11],[37,7,37,11],[32,1,33,1],[32,0,33,0],[11,0,13,0],[11,1,13,1],[24,0,26,0],[24,1,26,1],[18,1,20,1],[27,0,27,12],[14,0,17,0],[14,1,17,1],[21,0,22,0],[21,1,22,1],[22,2,22,6],[18,0,20,0],[28,0,31,0],[28,1,31,1],[34,0,36,0],[34,1,36,1],[29,2,29,6],[30,2,30,6],[4,0,6,0],[4,1,6,1],[7,0,10,0],[7,1,10,1],[36,2,36,6],[5,2,5,6],[24,2,24,6],[7,2,7,6],[10,2,10,6],[33,2,33,6],[34,2,34,6],[32,2,32,6],[1,8,1,11],[3,0,3,12],[4,2,4,6],[0,0,0,1],[0,2,0,6],[1,3,1,6],[2,0,2,1],[2,2,2,6],[54,1,54,5],[39,1,39,6],[55,1,55,5],[53,2,53,5],[49,2,49,5],[45,1,47,1],[50,2,50,5],[51,2,51,5],[52,2,52,5],[41,2,41,7],[40,2,40,7],[32,15,33,15],[34,15,36,15],[6,2,6,6],[4,15,6,15],[7,15,10,15],[11,15,13,15],[24,15,26,15],[28,15,31,15],[35,2,35,6],[14,15,17,15],[18,15,20,15],[21,15,22,15],[28,2,28,6],[31,2,31,6],[11,2,11,6],[13,2,13,6]]}
["CAP \" Conducteur Agent d'accueil en autobus et autocar \" ",null,{"$f":"Identification!B5","v":"EP1 : Déroulement d’une opération de transport - Unité UP1 "}]
[]
["COMPÉTENCES ÉVALUÉES",null,"                                     Critéres d'évaluation                        ",null,null,null,null,"Non","MI ","MF","MS","TBM",null,null,"Poids de la compétence","Notes","Éval","Notes"]
[" C1 - METTRE EN OEUVRE LA MISSION DE TRANSPORT",null,null,null,null,null,null,null,null,null,null,null,null,null,0.6,{"$f":"SUM(P5:P27)","v":{"$error":"#DIV/0!"}},{"$f":"SUM(Q5:Q27)","v":0},{"$f":"SUM(R5:R27)","v":{"$error":"#DIV/0!"}},null,null,{"$f":"SUM(U5:U37)","v":0},{"$f":"IF(U4=32,1,0)","v":0}]
["C1.1","Collecter les informations, vérifier et renseigner les documents.","Les informations relatives à la mission de transport sont collectées.",null,null,null,null,null,null,null,null,null,{"$f":"IF(T5>1,\"◄\",(IF(T5<1,\"◄\",\"\")))","v":"◄"},null,1,{"$f":"SUM(R5:R7)","v":{"$error":"#DIV/0!"}},{"$f":"IF(COUNTBLANK(H5:L5)=5,0,IF(H5=\"\",O5,0))","v":0},{"$f":"(IF(J5<>\"\",1/3,0)+IF(K5<>\"\",2/3,0)+IF(L5<>\"\",1,0))*O$4*20*Q5/SUM(Q$5:Q$27)","v":{"$error":"#DIV/0!"}},null,{"$f":"COUNTA(H5:L5)","v":0},{"$f":"COUNTBLANK(M5)","v":0}]
[null,null,"Les données nécessaires au transport à réaliser sont recueillies et exactes.",null,null,null,null,null,null,null,null,null,{"$f":"IF(T6>1,\"◄\",(IF(T6<1,\"◄\",\"\")))","v":"◄"},null,1,null,{"$f":"IF(COUNTBLANK(H6:L6)=5,0,IF(H6=\"\",O6,0))","v":0},{"$f":"(IF(J6<>\"\",1/3,0)+IF(K6<>\"\",2/3,0)+IF(L6<>\"\",1,0))*O$4*20*Q6/SUM(Q$5:Q$27)","v":{"$error":"#DIV/0!"}},null,{"$f":"COUNTA(H6:L6)","v":0},{"$f":"COUNTBLANK(M6)","v":0}]
[null,null,"Les documents sélectionnés sont renseignés et exploitables.",null,null,null,null,null,null,null,null,null,"◄",null,1,null,0,{"$error":"#DIV/0!"},null,0,0]
["C1.2","Vérifier l'adéquation du véhicule à la mission à réaliser","Le véhicule est compatible avec la mission de transport",null,null,null,null,null,null,null,null,null,"◄",null,1,{"$f":"SUM(R8:R11)","v":{"$error":"#DIV/0!"}},0,{"$error":"#DIV/0!"},null,0,0]
[null,null,"Le véhicule non compatible est refusé. Le service concerné est informé",null,null,null,null,null,null,null,null,null,"◄",null,1,null,0,{"$error":"#DIV/0!"},null,0,0]
[null,null,"Les équipements et accessoires nécessaires au(x) service(s) à réaliser sont présents et compatibles.",null,null,null,null,null,null,null,null,null,"◄",null,1,null,0,{"$error":"#DIV/0!"},null,0,0]
[null,null," La procédure d’utilisation de la plateforme UFR (utilisateur en fauteuil roulant) est maîtrisée.",null,null,null,null,null,null,null,null,null,"◄",null,1,null,0,{"$error":"#DIV/0!"},null,0,0]
["C1.3","Préparer son itinéraire","L’itinéraire tient compte des contraintes liées à la destination et au véhicule",null,null,null,null,null,null,null,null,null,"◄",null,1,{"$f":"SUM(R12:R14)","v":{"$error":"#DIV/0!"}},0,{"$error":"#DIV/0!"},null,0,0]
[null,null,"L’itinéraire est préparé en tenant compte des conditions météorologiques",null,null,null,null,null,null,null,null,null,"◄",null,1,null,0,{"$error":"#DIV/0!"},null,0,0]
[null,null,"Les notions de temps et de coût sont prises en compte dans la définition de l’itinéraire.",null,null,null,null,null,null,null,null,null,"◄",null,1,null,0,{"$error":"#DIV/0!"},null,0,0]
["C1.4","Contrôler l'opérationnalité du véhicule","Les contrôles, visites techniques, agréments afférents aux véhicules sont valides.",null,null,null,null,null,null,null,null,null,"◄",null,1,{"$f":"SUM(R15:R18)","v":{"$error":"#DIV/0!"}},0,{"$error":"#DIV/0!"},null,0,0]
[null,null,"Les équipements de sécurités sont présents et opérationnels.",null,null,null,null,null,null,null,null,null,"◄",null,1,null,0,{"$error":"#DIV/0!"},null,0,0]
[null,null,"Les vérifications de sécurité sont effectuées.",null,null,null,null,null,null,null,null,null,"◄",null,1,null,0,{"$error":"#DIV/0!"},null,0,0]
[null,null,"Les anomalies constatées sont signalées à la hiérarchie dans le respect des procédures de l’entreprise.",null,null,null,null,null,null,null,null,null,"◄",null,1,null,0,{"$error":"#DIV/0!"},null,0,0]
["C1.5","Préparer, gérer la caisse ainsi que des titres de transport","Le fond de caisse correspond au besoin du service.",null,null,null,null,null,null,null,null,null,"◄",null,1,{"$f":"SUM(R19:R21)","v":{"$error":"#DIV/0!"}},0,{"$error":"#DIV/0!"},null,0,0]
[null,null,"Les titres de transports sont en nombre suffisant pour la réalisation du service.",null,null,null,null,null,null,null,null,null,"◄",null,1,null,0,{"$error":"#DIV/0!"},null,0,0]
[null,null,"La caisse et les titres sont gérés sans erreurs.",null,null,null,null,null,null,null,null,null,"◄",null,1,null,0,{"$error":"#DIV/0!"},null,0,0]
["C1.6","Utiliser le tachygraphe","Le tachygraphe est mis en service et utilisé selon la réglementation en vigueur y compris en mode dégradé.",null,null,null,null,null,null,null,null,null,"◄",null,1,{"$f":"SUM(R22:R23)","v":{"$error":"#DIV/0!"}},0,{"$error":"#DIV/0!"},null,0,0]
[null,null,"Les paramètres enregistrés sont identifiés et commentés au regard de la règlementation européenne.",null,null,null,null,null,null,null,null,null,"◄",null,1,null,0,{"$error":"#DIV/0!"},null,0,0]
["C1.7","Programmer les outils numériques","Les systèmes d’aide à la conduite et à l’information voyageurs sont mis en oeuvre de manière à garantir la réalisation optimale du service.",null,null,null,null,null,null,null,null,null,"◄",null,1,{"$f":"R24","v":{"$error":"#DIV/0!"}},0,{"$error":"#DIV/0!"},null,0,0]
["C1.8","Communiquer, alerter en interne","Les informations et alertes sont transmises (oral et/ou écrit) de manière claire, précise et motivée.",null,null,null,null,null,null,null,null,null,"◄",null,1,{"$f":"SUM(R25:R27)","v":{"$error":"#DIV/0!"}},0,{"$error":"#DIV/0!"},null,0,0]
[null,null,"Les procédures d’entreprise sont appliquées.",null,null,null,null,null,null,null,null,null,"◄",null,1,null,0,{"$error":"#DIV/0!"},null,0,0]
[null,null,"Le bon interlocuteur est identifié.",null,null,null,null,null,null,null,null,null,"◄",null,1,null,0,{"$error":"#DIV/0!"},null,0,0]
[" C2 - CLÔTURER L’OPÉRATION DE TRANSPORT",null,null,null,null,null,null,null,null,null,null,null,null,null,0.4,{"$f":"SUM(P29:P37)","v":{"$error":"#DIV/0!"}},{"$f":"SUM(Q29:Q37)","v":0},{"$f":"SUM(R29:R37)","v":{"$error":"#DIV/0!"}}]
["C2.1","Rendre opérationnel le véhicule pour la mission suivante","Le véhicule est stationné sur l’emplacement prévu en sécurité.",null,null,null,null,null,null,null,null,null,"◄",null,1,{"$f":"SUM(R29:R32)","v":{"$error":"#DIV/0!"}},{"$f":"IF(COUNTBLANK(H29:L29)=5,0,IF(H29=\"\",O29,0))","v":0},{"$f":"(IF(J29<>\"\",1/3,0)+IF(K29<>\"\",2/3,0)+IF(L29<>\"\",1,0))*O$28*20*Q29/SUM(Q$29:Q$37)","v":{"$error":"#DIV/0!"}},null,{"$f":"COUNTA(H29:L29)","v":0},{"$f":"COUNTBLANK(M29)","v":0}]
[null,null,"Le véhicule est remis en conformité selon les exigences définies.",null,null,null,null,null,null,null,null,null,"◄",null,1,null,0,{"$f":"(IF(J30<>\"\",1/3,0)+IF(K30<>\"\",2/3,0)+IF(L30<>\"\",1,0))*O$28*20*Q30/SUM(Q$29:Q$37)","v":{"$error":"#DIV/0!"}},null,{"$f":"COUNTA(H30:L30)","v":0},0]
[null,null,"Les déchets sont triés et évacués",null,null,null,null,null,null,null,null,null,"◄",null,1,null,0,{"$error":"#DIV/0!"},null,0,0]
[null,null,"Le véhicule est inspecté en fin de service.",null,null,null,null,null,null,null,null,null,"◄",null,1,null,0,{"$error":"#DIV/0!"},null,0,0]
["C2.2","renseigner classer et restituer les documents","Les documents à restituer sont identifiés.",null,null,null,null,null,null,null,null,null,"◄",null,1,{"$f":"SUM(R33:R34)","v":{"$error":"#DIV/0!"}},0,{"$error":"#DIV/0!"},null,0,0]
[null,null,"Les documents, y compris les registres, sont renseignés, exploitables et remis au service concerné dans les délais.",null,null,null,null,null,null,null,null,null,"◄",null,1,null,0,{"$error":"#DIV/0!"},null,0,0]
["C2.3","Réaliser les procédure de fin de service lièes aux outils et au opérations commercialles","La caisse et les titres de transport sont vérifiés et restitués selon la procédure identifiée.",null,null,null,null,null,null,null,null,null,"◄",null,1,{"$f":"SUM(R35:R37)","v":{"$error":"#DIV/0!"}},0,{"$error":"#DIV/0!"},null,0,0]
[null,null,"Les anomalies de caisse sont identifiées et signalées.",null,null,null,null,null,null,null,null,null,"◄",null,1,null,0,{"$error":"#DIV/0!"},null,0,0]
[null,null,"Les opérations de fin de service liées au SAEIV et au tachygraphe sont réalisées.",null,null,null,null,null,null,null,null,null,"◄",null,1,null,0,{"$error":"#DIV/0!"},null,0,0]
[null,"Taux compétences","Taux d'indicateurs évalués pour C1",null,null,null,null,{"$f":"Q4/SUM(O5:O27)","v":0}]
[null,null,"Taux d'indicateurs évalués pour C2",null,null,null,null,{"$f":"Q28/SUM(O29:O37)","v":0}]
[]
[null,null,"Note obtenue par calcul automatique",null,null,null,null,null,{"$f":"IF(OR(V4=0,H38<0.5,H39<0.5),\"!\",SUM(P4,P28))","v":"!"},null,"/20"]
[null,null,"                                                                                                         Note sur 20 proposée au jury                                                                          \n  (la cellule est rouge si la note n'est pas validable)  ",null,null,null,null,null,null,null,"/20"]
[null,null,"Note X coefficient",null,null,null,null,null,{"$f":"I42*3","v":0},null,"/60"]
[]
[null,"Nom - Prénom du Candidat"]
[null,{"$f":"CONCATENATE(Identification!B9,\" \",Identification!B10)","v":" "}]
[]
[]
[null,"Nom et prénom des examinateurs                                                         attribuant la note","Emargements",null,null,null,null,"Date"]
[null,{"$f":"CONCATENATE(Identification!A20)","v":""},null,null,null,null,null,{"$f":"TODAY()","v":"2024-10-18"}]
[null,{"$f":"CONCATENATE(Identification!A21)","v":""}]
[null,{"$f":"CONCATENATE(Identification!A22)","v":""}]
[null,{"$f":"CONCATENATE(Identification!A23)","v":""}]
[null,{"$f":"CONCATENATE(Identification!A24)","v":""}]
[null,"Appréciation globale"]